bitfinex/quotes_BTCUSD_20240623
["timestamp","ask_amount","ask_price","bid_price","bid_amount"]
[1719158238249,0.67149002,64179.0,64178.0,0.2827496]
[1719158238929,0.67248912,64179.0,64178.0,0.2877496]
[1719158239350,0.67248912,64179.0,64178.0,0.28774962]
[1719158241993,0.67248613,64179.0,64178.0,0.28774962]
[1719158243316,0.67248613,64179.0,64178.0,0.26671649]
[1719158243317,1.36148724,64179.0,64178.0,0.26671649]
[1719158243539,1.57042404,64179.0,64178.0,0.26671649]
[1719158243757,1.45373043,64179.0,64178.0,0.26774962]
[1719158244620,1.65373043,64179.0,64178.0,0.26774962]
[1719158244856,1.61378692,64179.0,64178.0,0.26774962]
[1719158245087,1.65134421,64179.0,64178.0,0.26774962]
[1719158245317,1.65129042,64179.0,64178.0,0.26774962]
[1719158246207,1.65129042,64179.0,64178.0,0.26671649]
[1719158246412,1.59899042,64179.0,64178.0,0.26671649]
[1719158247077,1.65129042,64179.0,64178.0,0.26671649]
[1719158247933,1.6514867,64179.0,64178.0,0.26671649]
[1719158249893,1.5991867,64179.0,64178.0,0.26671649]
[1719158250114,1.6514867,64179.0,64178.0,0.26671649]
[1719158251029,1.6515675,64179.0,64178.0,0.26671649]
[1719158251713,1.6515675,64179.0,64178.0,0.24371649]
[1719158251929,1.6515675,64179.0,64178.0,0.09115537]
[1719158254058,1.65177465,64179.0,64178.0,0.09115537]
[1719158254494,1.604098,64179.0,64178.0,0.09115537]
[1719158254702,1.65177482,64179.0,64178.0,0.09115537]
[1719158255565,1.604098,64179.0,64178.0,0.09115537]
[1719158255780,1.6518072,64179.0,64178.0,0.09115537]
[1719158258549,1.5995072,64179.0,64178.0,0.09115537]
[1719158258765,1.6518072,64179.0,64178.0,0.09115537]
[1719158259600,1.6518072,64179.0,64178.0,0.0921885]
[1719158259802,1.42093179,64179.0,64178.0,0.0921885]
[1719158260021,1.4985072,64179.0,64178.0,0.0921885]
[1719158260262,1.55093779,64179.0,64178.0,0.09115537]
[1719158260471,1.49863779,64179.0,64178.0,0.1121885]
[1719158260683,1.49863779,64179.0,64178.0,0.09115537]
[1719158260900,1.55093779,64179.0,64178.0,0.0921885]
[1719158262001,1.65093779,64179.0,64178.0,0.0921885]
[1719158263041,1.65093779,64179.0,64178.0,0.1121885]
[1719158263259,1.550798,64179.0,64178.0,0.1121885]
[1719158263466,1.65262294,64179.0,64178.0,0.11218849]
[1719158264348,1.52622294,64179.0,64178.0,0.11218849]
[1719158264561,1.57852294,64179.0,64178.0,0.11218849]
[1719158266391,1.57895237,64179.0,64178.0,0.11218849]
[1719158266569,1.57895237,64179.0,64178.0,0.09218849]
[1719158266777,1.57895237,64179.0,64178.0,0.09115536]
[1719158268913,1.57895237,64179.0,64178.0,0.09209036]
[1719158269519,1.57980237,64179.0,64178.0,0.09209036]
[1719158269717,1.57980237,64179.0,64178.0,0.09312349]
[1719158269940,1.52750237,64179.0,64178.0,0.09312349]
[1719158270393,1.57980237,64179.0,64178.0,0.09312349]
[1719158271477,1.529848,64179.0,64178.0,0.09312349]
[1719158271895,1.53953793,64179.0,64178.0,0.09312349]
[1719158272226,1.53953793,64179.0,64178.0,0.09209036]
[1719158273089,1.53953793,64179.0,64178.0,0.09312349]
[1719158273264,1.57887497,64179.0,64178.0,0.09312349]
[1719158273686,1.529848,64179.0,64178.0,0.09312349]
[1719158277444,1.444848,64179.0,64178.0,0.11312349]
[1719158277708,1.444848,64179.0,64178.0,0.09312349]
[1719158278125,1.444848,64179.0,64178.0,0.09209036]
[1719158278549,1.49409098,64179.0,64178.0,0.09209036]
[1719158278995,1.45453787,64179.0,64178.0,0.09209036]
[1719158279215,1.49388503,64179.0,64178.0,0.09209036]
[1719158281363,1.49390005,64179.0,64178.0,0.09209036]
[1719158283040,1.44160005,64179.0,64178.0,0.09209036]
[1719158283242,1.49390005,64179.0,64178.0,0.09209036]
[1719158283447,1.44160005,64179.0,64178.0,0.11312349]
[1719158283687,1.44160005,64179.0,64178.0,0.09312349]
[1719158283884,1.49390005,64179.0,64178.0,0.11312349]
[1719158284530,1.4936357,64179.0,64178.0,0.09312349]
[1719158285190,1.4413357,64179.0,64178.0,0.09312349]
[1719158285416,1.4936357,64179.0,64178.0,0.09312349]
[1719158286060,1.4413357,64179.0,64178.0,0.09312349]
[1719158286263,1.4936357,64179.0,64178.0,0.09209036]
[1719158286686,1.4413357,64179.0,64178.0,0.09209036]
[1719158286955,1.4936357,64179.0,64178.0,0.09209036]
[1719158287181,1.4413357,64179.0,64178.0,0.11312349]
[1719158287395,1.4413357,64179.0,64178.0,0.09312349]
[1719158287873,1.08092,64179.0,64178.0,0.26568461]
[1719158288097,1.13080525,64179.0,64178.0,0.34808461]
[1719158288738,1.13080525,64179.0,64178.0,0.36808461]
[1719158288954,1.13080525,64179.0,64178.0,0.34808461]
[1719158289164,1.13087776,64179.0,64178.0,0.34808461]
[1719158290631,1.08092,64179.0,64178.0,0.34705148]
[1719158290846,1.09060821,64179.0,64178.0,0.34705148]
[1719158291066,1.13094893,64179.0,64178.0,0.34705148]
[1719158291699,1.13094893,64179.0,64178.0,0.34808461]
[1719158291954,1.13094893,64179.0,64178.0,0.34705148]
[1719158292786,1.13094893,64179.0,64178.0,0.24465148]
[1719158293441,1.13094893,64179.0,64178.0,0.24568461]
[1719158293865,1.13031651,64179.0,64178.0,0.24568461]
[1719158294083,1.13031651,64179.0,64178.0,0.24465148]
[1719158295172,1.13031651,64179.0,64178.0,0.24568461]
[1719158295373,1.13031651,64179.0,64178.0,0.24465148]
[1719158295794,1.13031651,64179.0,64178.0,0.24568461]
[1719158296016,1.18261651,64179.0,64178.0,0.24465148]
[1719158296934,1.18270852,64179.0,64178.0,0.24465148]
[1719158297156,1.13040852,64179.0,64178.0,0.26568461]
[1719158297361,1.13074775,64179.0,64178.0,0.26568461]
[1719158297770,1.12974775,64179.0,64178.0,0.24568461]
[1719158297973,1.12974775,64179.0,64178.0,0.26568461]
[1719158298801,1.12974775,64179.0,64178.0,0.24568461]
[1719158299039,1.12974775,64179.0,64178.0,0.26568461]
[1719158299687,1.12974775,64179.0,64178.0,0.24465148]
[1719158299895,1.12974775,64179.0,64178.0,0.24568461]
[1719158300105,1.13026124,64179.0,64178.0,0.24465148]
[1719158300315,1.13026124,64179.0,64178.0,0.24568461]
[1719158300513,1.13026124,64179.0,64178.0,0.24465148]
[1719158301357,1.18256124,64179.0,64178.0,0.24465153]
[1719158301990,1.49418924,64179.0,64178.0,0.24465153]
[1719158303084,1.48404631,64179.0,64178.0,0.24465153]
[1719158303294,1.49373539,64179.0,64178.0,0.24465153]
[1719158303497,1.63386191,64179.0,64178.0,0.24465153]
[1719158304531,1.63386191,64179.0,64178.0,0.24568466]
[1719158304674,1.63386191,64179.0,64178.0,0.24465153]
[1719158305283,1.63386191,64179.0,64178.0,0.24568466]
[1719158306102,1.63385216,64179.0,64178.0,0.24568466]
[1719158306313,1.443848,64179.0,64178.0,0.24568466]
[1719158306519,1.6341001,64179.0,64178.0,0.24568466]
[1719158306747,1.49396223,64179.0,64178.0,0.24568466]
[1719158308009,1.6341001,64179.0,64178.0,0.24568466]
[1719158308410,1.6341001,64179.0,64178.0,0.24465153]
[1719158309246,1.63426409,64179.0,64178.0,0.24465153]
[1719158310350,1.58196409,64179.0,64178.0,0.24568466]
[1719158310549,1.63426409,64179.0,64178.0,0.28868466]
[1719158310758,1.27033609,64179.0,64178.0,0.46558466]
[1719158311916,1.13020521,64179.0,64178.0,0.46558466]
[1719158312370,1.07992,64179.0,64178.0,0.46558466]
[1719158312548,1.13176591,64179.0,64178.0,0.46558466]
[1719158315390,1.07992,64179.0,64178.0,0.46558466]
[1719158315624,1.13196721,64179.0,64178.0,0.46558466]
[1719158316925,1.13195689,64179.0,64178.0,0.46558466]
[1719158318546,1.13177879,64179.0,64178.0,0.46558466]
[1719158321632,1.13161127,64179.0,64178.0,0.46558466]
[1719158322366,1.18391127,64179.0,64178.0,0.46558466]
[1719158322604,1.18391127,64179.0,64178.0,0.38618466]
[1719158324448,1.12188309,64179.0,64178.0,0.38618466]
[1719158324675,1.07019182,64179.0,64178.0,0.38618466]
[1719158324900,1.12153709,64179.0,64178.0,0.38618466]
[1719158325157,1.07019182,64179.0,64178.0,0.38618466]
[1719158325417,1.12153708,64179.0,64178.0,0.38618466]
[1719158325705,0.75760908,64179.0,64178.0,0.28868466]
[1719158327870,0.75737176,64179.0,64178.0,0.28868466]
[1719158328136,0.75737176,64179.0,64178.0,0.39148466]
[1719158330798,0.70626382,64179.0,64178.0,0.39148466]
[1719158331013,0.75820158,64179.0,64178.0,0.39148466]
[1719158334097,0.75919667,64179.0,64178.0,0.39148466]
[1719158334331,0.70626382,64179.0,64178.0,0.39148466]
[1719158334572,0.75919788,64179.0,64178.0,0.39148466]
[1719158334809,0.70626382,64179.0,64178.0,0.39148466]
[1719158335076,0.74373525,64179.0,64178.0,0.39148466]
[1719158335297,0.74373525,64179.0,64178.0,0.47538466]
[1719158335529,0.74377261,64179.0,64178.0,0.47538466]
[1719158337172,0.70041067,64179.0,64178.0,0.47538466]
[1719158337417,0.81712198,64179.0,64178.0,0.47538466]
[1719158338784,1.1719428,64179.0,64178.0,0.47538466]
[1719158339040,1.05523149,64179.0,64178.0,0.47538466]
[1719158339726,1.05523149,64179.0,64178.0,0.39148466]
[1719158340429,1.0549707,64179.0,64178.0,0.39148466]
[1719158342714,1.00235256,64179.0,64178.0,0.39148466]
[1719158342952,1.05518893,64179.0,64178.0,0.39148466]
[1719158343193,1.05518901,64179.0,64178.0,0.39148466]
[1719158344135,1.05505235,64179.0,64178.0,0.39148466]
[1719158346027,1.05516793,64179.0,64178.0,0.39148466]
[1719158349073,1.05519744,64179.0,64178.0,0.39148466]
[1719158351205,1.17190444,64179.0,64178.0,0.39148466]
[1719158351423,1.05519744,64179.0,64178.0,0.39148466]
[1719158352254,1.05524578,64179.0,64178.0,0.39148466]
[1719158352694,1.00235256,64179.0,64178.0,0.39148466]
[1719158352901,1.05523715,64179.0,64178.0,0.39148466]
[1719158353787,1.0552371,64179.0,64178.0,0.39148466]
[1719158355398,1.05542258,64179.0,64178.0,0.39148466]
[1719158357078,1.10772258,64179.0,64178.0,0.39148466]
[1719158358323,1.06433871,64179.0,64178.0,0.39148466]
[1719158358530,1.09820302,64179.0,64178.0,0.39148466]
[1719158358751,1.10788919,64179.0,64178.0,0.39148466]
[1719158359421,1.05558919,64179.0,64178.0,0.39148466]
[1719158359622,0.85558919,64179.0,64178.0,0.39148466]
[1719158359854,0.90788919,64179.0,64178.0,0.39148466]
[1719158360719,1.10788919,64179.0,64178.0,0.39148466]
[1719158361574,1.10888099,64179.0,64178.0,0.39148466]
[1719158361997,1.10891031,64179.0,64178.0,0.39148466]
[1719158362203,1.42053831,64179.0,64178.0,0.26765153]
[1719158362424,1.61243831,64179.0,64178.0,0.26765153]
[1719158362861,1.7525074,64179.0,64178.0,0.24465153]
[1719158363088,1.74930347,64179.0,64178.0,0.24465153]
[1719158363352,1.60923909,64179.0,64178.0,0.24465153]
[1719158364446,1.55818056,64179.0,64178.0,0.24465153]
[1719158364656,1.60744364,64179.0,64178.0,0.24465153]
[1719158364879,1.37338308,64179.0,64178.0,0.09209041]
[1719158365076,1.68501108,64179.0,64178.0,0.09209041]
[1719158365503,1.65501108,64179.0,64178.0,0.09209041]
[1719158367706,1.605748,64179.0,64178.0,0.09209041]
[1719158367950,1.65495556,64179.0,64178.0,0.09209041]
[1719158368438,1.65495556,64179.0,64178.0,0.09209045]
[1719158370778,1.605748,64179.0,64178.0,0.09209045]
[1719158370991,1.65532247,64179.0,64178.0,0.09209045]
[1719158371228,1.65532339,64179.0,64178.0,0.09209045]
[1719158372198,1.65536243,64179.0,64178.0,0.09209045]
[1719158372668,1.41116243,64179.0,64178.0,0.09312358]
[1719158372907,1.46346243,64179.0,64178.0,0.09312358]
[1719158373805,1.46349456,64179.0,64178.0,0.09312358]
[1719158376920,1.46387776,64179.0,64178.0,0.09312358]
[1719158377276,1.41157776,64179.0,64178.0,0.09312358]
[1719158377724,1.46387776,64179.0,64178.0,0.19672358]
[1719158379439,1.46387776,64179.0,64178.0,0.09209045]
[1719158379862,1.413848,64179.0,64178.0,0.09209045]
[1719158380073,1.46420092,64179.0,64178.0,0.09209045]
[1719158380286,1.46420142,64179.0,64178.0,0.09209045]
[1719158380497,1.46420142,64179.0,64178.0,0.09312358]
[1719158381333,1.46422342,64179.0,64178.0,0.11312358]
[1719158381539,1.46422342,64179.0,64178.0,0.09312358]
[1719158382386,1.15259542,64179.0,64178.0,0.09312358]
[1719158382586,1.15259542,64179.0,64178.0,0.11312358]
[1719158383023,1.10024093,64179.0,64178.0,0.2656847]
[1719158383236,1.10024093,64179.0,64178.0,0.4727847]
[1719158383237,0.78861293,64179.0,64178.0,0.4727847]
[1719158383704,0.738292,64179.0,64178.0,0.4727847]
[1719158383913,0.7886123,64179.0,64178.0,0.4727847]
[1719158384147,0.7886123,64179.0,64178.0,0.4527847]
[1719158385207,1.1002403,64179.0,64178.0,0.4527847]
[1719158386046,1.04992,64179.0,64178.0,0.4527847]
[1719158386244,1.10096492,64179.0,64178.0,0.4527847]
[1719158387552,0.84163692,64179.0,64178.0,0.4727847]
[1719158389025,1.15326492,64179.0,64178.0,0.4727847]
[1719158389232,1.10222,64179.0,64178.0,0.4727847]
[1719158389448,1.15310714,64179.0,64178.0,0.4727847]
[1719158389658,1.26981648,64179.0,64178.0,0.4727847]
[1719158389866,0.95818845,64179.0,64178.0,0.4727847]
[1719158390089,0.70824444,64179.0,64178.0,0.4727847]
[1719158390324,0.66704489,64179.0,64178.0,0.4727847]
[1719158390905,0.86411022,64179.0,64178.0,0.4727847]
[1719158391505,0.86410563,64179.0,64178.0,0.4727847]
[1719158391704,0.86410463,64179.0,64178.0,0.4727847]
[1719158392187,0.79646199,64179.0,64178.0,0.4727847]
[1719158392347,0.88860711,64179.0,64178.0,0.4727847]
[1719158392506,0.84738952,64179.0,64178.0,0.4727847]
[1719158392708,0.92285363,64179.0,64178.0,0.4727847]
[1719158393340,0.8473678,64179.0,64178.0,0.4727847]
[1719158395004,0.79646199,64179.0,64178.0,0.4727847]
[1719158395233,0.84743606,64179.0,64178.0,0.4727847]
[1719158395451,0.79646199,64179.0,64178.0,0.4727847]
[1719158395764,0.84746635,64179.0,64178.0,0.4727847]
[1719158396347,0.79516635,64179.0,64178.0,0.4727847]
[1719158396724,0.91186785,64179.0,64178.0,0.4727847]
[1719158397539,0.91271785,64179.0,64178.0,0.4727847]
[1719158397962,0.9127166,64179.0,64178.0,0.4727847]
[1719158398162,0.87139984,64179.0,64178.0,0.4727847]
[1719158398363,0.91261383,64179.0,64178.0,0.4727847]
[1719158398611,0.87140053,64179.0,64178.0,0.4727847]
[1719158398817,0.9126121,64179.0,64178.0,0.3922847]
[1719158399025,0.79591053,64179.0,64178.0,0.3922847]
[1719158401122,0.84697127,64179.0,64178.0,0.3922847]
[1719158401362,0.89795696,64179.0,64178.0,0.3922847]
[1719158402009,1.20958496,64179.0,64178.0,0.3922847]
[1719158402213,1.20958496,64179.0,64178.0,0.3722847]
[1719158402424,1.20958496,64179.0,64178.0,0.3922847]
[1719158403786,1.20958496,64179.0,64178.0,0.3722847]
[1719158404002,1.20958496,64179.0,64178.0,0.3922847]
[1719158404854,1.20929436,64179.0,64178.0,0.3922847]
[1719158405061,0.89766636,64179.0,64178.0,0.3922847]
[1719158405481,1.20929436,64179.0,64178.0,0.3922847]
[1719158406334,1.20929436,64179.0,64178.0,0.3722847]
[1719158406553,1.20929436,64179.0,64178.0,0.3922847]
[1719158408017,1.15859927,64179.0,64178.0,0.3922847]
[1719158408232,1.20997445,64179.0,64178.0,0.3922847]
[1719158409123,1.20997445,64179.0,64178.0,0.3722847]
[1719158409346,1.10801517,64179.0,64178.0,0.2886847]
[1719158409583,1.10801517,64179.0,64178.0,0.2686847]
[1719158409974,1.10801517,64179.0,64178.0,0.2886847]
[1719158410141,1.10801517,64179.0,64178.0,0.2686847]
[1719158410749,1.05663999,64179.0,64178.0,0.2686847]
[1719158410951,1.10655634,64179.0,64178.0,0.2686847]
[1719158412582,1.10655634,64179.0,64178.0,0.2886847]
[1719158413003,1.10655634,64179.0,64178.0,0.2686847]
[1719158413858,1.05663999,64179.0,64178.0,0.2686847]
[1719158414059,1.10645993,64179.0,64178.0,0.2686847]
[1719158414269,1.10645993,64179.0,64178.0,0.26765157]
[1719158414464,1.60248793,64179.0,64178.0,0.26765157]
[1719158415408,1.52048793,64179.0,64178.0,0.26765157]
[1719158416219,1.41808793,64179.0,64178.0,0.26765157]
[1719158416840,1.40787161,64179.0,64178.0,0.26765157]
[1719158417081,1.41755697,64179.0,64178.0,0.26765157]
[1719158419828,1.46985697,64179.0,64178.0,0.26765157]
[1719158420113,1.46993271,64179.0,64178.0,0.26765157]
[1719158420319,1.41763271,64179.0,64178.0,0.26765157]
[1719158420523,1.46993271,64179.0,64178.0,0.26765157]
[1719158423089,1.47037947,64179.0,64178.0,0.26765157]
[1719158424455,1.27037947,64179.0,64178.0,0.26765157]
[1719158425117,1.21807947,64179.0,64178.0,0.26765157]
[1719158425356,1.27037947,64179.0,64178.0,0.26765157]
[1719158425989,1.21807947,64179.0,64178.0,0.2686847]
[1719158426203,1.27016301,64179.0,64178.0,0.2686847]
[1719158426701,1.27016315,64179.0,64178.0,0.2686847]
[1719158426958,1.27016315,64179.0,64178.0,0.2886847]
[1719158427433,1.21786315,64179.0,64178.0,0.2886847]
[1719158427674,0.90623515,64179.0,64178.0,0.4722847]
[1719158427916,0.57797773,64179.0,64178.0,0.4722847]
[1719158428157,0.67133302,64179.0,64178.0,0.4822847]
[1719158428399,0.57797773,64179.0,64178.0,0.4722847]
[1719158428627,0.57797773,64179.0,64178.0,0.4822847]
[1719158429311,0.11053668,64179.0,64178.0,0.4822847]
[1719158429567,0.26635068,64179.0,64178.0,0.4822847]
[1719158430480,0.180542,64179.0,64178.0,0.4822847]
[1719158431004,0.01053668,64179.0,64178.0,0.6381007]
[1719158431236,0.01053668,64179.0,64178.0,1.0497337]
[1719158431725,0.01053668,64179.0,64178.0,1.3613667]
[1719158431965,0.01053668,64179.0,64178.0,1.5563667]
[1719158432237,0.01153668,64179.0,64178.0,1.3623667]
[1719158432502,0.00185,64179.0,64178.0,1.3563667]
[1719158432746,0.00085,64186.0,64185.0,1.37273013]
[1719158432977,0.00085,64186.0,64185.0,1.60059125]
[1719158434114,0.00185,64186.0,64185.0,1.6147467]
[1719158434365,0.00085,64186.0,64185.0,1.6007467]
[1719158435302,0.00085,64186.0,64185.0,1.5484467]
[1719158435775,0.00185,64186.0,64185.0,1.6147467]
[1719158436000,0.00285,64186.0,64185.0,1.6287467]
[1719158436237,0.00285,64186.0,64185.0,1.6147467]
[1719158436238,0.00185,64186.0,64185.0,1.6147467]
[1719158436471,0.00285,64186.0,64185.0,1.62874673]
[1719158436959,0.00185,64186.0,64185.0,1.61474673]
[1719158437187,0.00285,64186.0,64185.0,1.62874673]
[1719158437429,0.00185,64186.0,64185.0,1.61474673]
[1719158437658,0.00285,64186.0,64185.0,1.62674673]
[1719158438118,0.00185,64186.0,64185.0,1.61474673]
[1719158438585,0.00285,64186.0,64185.0,1.62674673]
[1719158443362,0.00285,64186.0,64185.0,1.68914573]
[1719158443921,0.00085,64193.0,64192.0,0.95108013]
[1719158444162,0.00085,64193.0,64192.0,1.13664125]
[1719158445318,0.00085,64193.0,64192.0,1.13679673]
[1719158445731,0.00185,64193.0,64192.0,1.14779673]
[1719158446423,0.00185,64193.0,64192.0,0.82623173]
[1719158447053,0.00185,64193.0,64192.0,0.67044973]
[1719158447285,0.15863,64193.0,64192.0,0.4787497]
[1719158447500,0.62249,64193.0,64192.0,0.25771657]
[1719158447744,1.13943851,64193.0,64192.0,0.25771657]
[1719158448204,1.45099851,64193.0,64192.0,0.10515545]
[1719158448448,1.44899851,64193.0,64192.0,0.08015545]
[1719158450620,1.44899808,64193.0,64192.0,0.08015545]
[1719158451502,1.39669808,64193.0,64192.0,0.08118858]
[1719158452144,1.39669808,64193.0,64192.0,0.08015545]
[1719158453461,1.38701,64193.0,64192.0,0.08015545]
[1719158453685,1.39669799,64193.0,64192.0,0.08015545]
[1719158453907,1.38701,64193.0,64192.0,0.08015545]
[1719158454113,1.39669768,64193.0,64192.0,0.08015545]
[1719158454540,1.39669768,64193.0,64192.0,0.08118858]
[1719158455194,1.39669751,64193.0,64192.0,0.08118858]
[1719158455659,1.39669751,64193.0,64192.0,0.10118858]
[1719158455862,1.39669751,64193.0,64192.0,0.2767497]
[1719158455863,0.57787751,64193.0,64192.0,0.2767497]
[1719158456277,0.88943751,64193.0,64192.0,0.2767497]
[1719158456915,0.57787751,64193.0,64192.0,0.3851497]
[1719158457343,0.56819,64193.0,64192.0,0.3871497]
[1719158458364,0.10085,64193.0,64192.0,0.3871497]
[1719158458573,0.00085,64193.0,64192.0,0.3871497]
[1719158458775,0.15663,64193.0,64192.0,0.3881497]
[1719158458997,0.25663,64193.0,64192.0,0.3881497]
[1719158459752,0.25654794,64193.0,64192.0,0.3881497]
[1719158461312,0.10076794,64193.0,64192.0,0.3881497]
[1719158461481,0.10076794,64193.0,64192.0,0.3981497]
[1719158462686,0.00076794,64193.0,64192.0,0.3981497]
[1719158463324,0.00076794,64193.0,64192.0,0.39814966]
[1719158464008,0.00076794,64193.0,64192.0,0.97426353]
[1719158464212,0.00076794,64193.0,64192.0,1.00529666]
[1719158464385,0.00076794,64193.0,64192.0,0.99529666]
[1719158464589,0.00076794,64193.0,64192.0,1.00529666]
[1719158464790,0.00076794,64193.0,64192.0,0.99529666]
[1719158465000,0.00076794,64193.0,64192.0,0.95299666]
[1719158465230,0.00076794,64193.0,64192.0,0.95099666]
[1719158465444,0.00076794,64193.0,64192.0,0.94099666]
[1719158465677,0.01045338,64193.0,64192.0,0.94099666]
[1719158465896,0.00076794,64193.0,64192.0,0.95099666]
[1719158466301,0.00076794,64193.0,64192.0,0.94999666]
[1719158466728,0.00276794,64193.0,64192.0,0.96499666]
[1719158468103,0.00276794,64193.0,64192.0,0.97499666]
[1719158471283,0.00276794,64193.0,64192.0,1.33886166]
[1719158471867,0.00276794,64193.0,64192.0,1.65042666]
[1719158472279,0.00276794,64193.0,64192.0,1.85042666]
[1719158472491,0.00276794,64193.0,64192.0,1.65042666]
[1719158474923,0.00276794,64193.0,64192.0,1.59812666]
[1719158475122,0.00276794,64193.0,64192.0,1.65042666]
[1719158476698,0.00276794,64193.0,64192.0,1.85042666]
[1719158477129,0.00276794,64193.0,64192.0,1.65042666]
[1719158478638,0.00276794,64193.0,64192.0,1.85042666]
[1719158478852,0.00276794,64193.0,64192.0,1.65042666]
[1719158481334,0.00276794,64193.0,64192.0,1.85042666]
[1719158482153,0.00276794,64193.0,64192.0,1.95042666]
[1719158483389,0.00176794,64193.0,64192.0,1.93842666]
[1719158483599,0.00076794,64193.0,64192.0,1.92542666]
[1719158484055,0.00076794,64193.0,64192.0,1.95142666]
[1719158484056,0.00276794,64193.0,64192.0,1.95142666]
[1719158485586,0.00276794,64193.0,64192.0,2.36299166]
[1719158485849,0.00276794,64193.0,64192.0,3.06399166]
[1719158486065,0.00276794,64193.0,64192.0,3.07949166]
[1719158486514,0.00176794,64193.0,64192.0,3.06749166]
[1719158486960,0.00176794,64193.0,64192.0,3.06549166]
[1719158487196,0.00076794,64193.0,64192.0,3.06549166]
[1719158487403,0.00076794,64193.0,64192.0,3.05349166]
[1719158487839,0.00076794,64193.0,64192.0,3.06749166]
[1719158488680,0.00076794,64193.0,64192.0,3.08149166]
[1719158490907,0.00076794,64193.0,64192.0,3.05349166]
[1719158491119,0.00076794,64193.0,64192.0,3.06749166]
[1719158491345,0.00076794,64193.0,64192.0,3.08149166]
[1719158491588,0.00076794,64193.0,64192.0,3.02919166]
[1719158491836,0.00076794,64193.0,64192.0,3.01519166]
[1719158492055,0.00076794,64193.0,64192.0,3.06749166]
[1719158492459,0.00076794,64193.0,64192.0,3.08149166]
[1719158493810,0.00076794,64193.0,64192.0,3.08242666]
[1719158496211,0.00076794,64193.0,64192.0,3.03012666]
[1719158496433,0.00076794,64193.0,64192.0,3.08242666]
[1719158496703,0.00076794,64193.0,64192.0,3.10137614]
[1719158497177,0.00439177,64213.0,64212.0,0.31103313]
[1719158497383,0.00439177,64213.0,64212.0,0.48659425]
[1719158497594,0.01408101,64213.0,64212.0,0.48659425]
[1719158497802,0.01408101,64213.0,64212.0,0.47659425]
[1719158498015,0.01408101,64213.0,64212.0,0.47674966]
[1719158498941,0.01408101,64213.0,64212.0,0.48374966]
[1719158500242,0.02708101,64213.0,64212.0,0.48374966]
[1719158500654,0.02708101,64213.0,64212.0,0.48374961]
[1719158501757,0.85803801,64213.0,64212.0,0.23971648]
[1719158502146,1.33936728,64213.0,64212.0,0.23971648]
[1719158502412,1.70484577,64213.0,64212.0,0.00715536]
[1719158502633,1.090257,64205.0,64204.0,0.08]
[1719158502852,1.15398334,64205.0,64204.0,0.08]
[1719158503130,1.37042861,64205.0,64204.0,0.08]
[1719158503772,1.37042861,64205.0,64198.0,0.00103313]
[1719158503773,0.829727,64199.0,64198.0,0.00103313]
[1719158503987,1.07152492,64199.0,64198.0,0.15359425]
[1719158504201,1.07140454,64199.0,64198.0,0.15359425]
[1719158505030,1.07140454,64199.0,64198.0,0.17659425]
[1719158505229,1.38293554,64199.0,64198.0,0.17659425]
[1719158505440,1.38279251,64199.0,64198.0,0.17659425]
[1719158506331,1.00156775,64199.0,64198.0,0.19659425]
[1719158506548,0.94926775,64199.0,64198.0,0.19659425]
[1719158506974,0.99583065,64199.0,64198.0,0.19659425]
[1719158508405,0.93578277,64199.0,64198.0,0.19659425]
[1719158508614,0.95059714,64199.0,64198.0,0.19659425]
[1719158510021,0.95059714,64199.0,64198.0,0.17659425]
[1719158510255,0.95059714,64199.0,64198.0,0.19659425]
[1719158510861,0.95059714,64199.0,64198.0,0.19859425]
[1719158511265,0.92059714,64199.0,64198.0,0.19859425]
[1719158511677,0.92032429,64199.0,64198.0,0.19859425]
[1719158512125,0.79455965,64199.0,64198.0,0.19859425]
[1719158512864,0.95032465,64199.0,64198.0,0.19859425]
[1719158513069,0.95032465,64199.0,64198.0,0.19959425]
[1719158514781,0.95085473,64199.0,64198.0,0.19959425]
[1719158515210,0.11522773,64199.0,64198.0,0.28789425]
[1719158515410,0.01522773,64199.0,64198.0,0.39959425]
[1719158515610,0.10015577,64199.0,64198.0,0.40959425]
[1719158515825,0.11522773,64199.0,64198.0,0.40959425]
[1719158516243,0.11522773,64199.0,64198.0,0.55536225]
[1719158516439,0.11522773,64199.0,64198.0,0.56536225]
[1719158516683,0.01522773,64199.0,64198.0,0.56536225]
[1719158516835,0.00015577,64199.0,64198.0,0.56536225]
[1719158517418,0.00015577,64199.0,64198.0,0.56436225]
[1719158517852,0.00015577,64199.0,64198.0,0.56636225]
[1719158518055,0.00015577,64199.0,64198.0,0.57136225]
[1719158519883,0.00015577,64199.0,64198.0,0.56136225]
[1719158520327,0.00015577,64199.0,64198.0,0.41559425]
[1719158520763,0.00015577,64199.0,64198.0,0.40559425]
[1719158520968,0.00015577,64199.0,64198.0,0.57136225]
[1719158522642,0.00015577,64199.0,64198.0,0.56136225]
[1719158522845,0.00015577,64199.0,64198.0,0.20559425]
[1719158526249,0.01414465,64199.0,64198.0,0.20559425]
[1719158526475,0.00015577,64199.0,64198.0,0.20559425]
[1719158526657,0.01414458,64199.0,64198.0,0.20652925]
[1719158527079,0.01499458,64199.0,64198.0,0.20652925]
[1719158528042,0.17075958,64199.0,64198.0,0.20652925]
[1719158529645,0.17036051,64199.0,64198.0,0.20652925]
[1719158530025,0.2295843,64199.0,64198.0,0.20652925]
[1719158530224,0.2295843,64199.0,64198.0,0.18352925]
[1719158530697,1.1641773,64199.0,64198.0,0.18352925]
[1719158531678,1.1641773,64199.0,64198.0,0.17952925]
[1719158531926,1.1641773,64199.0,64198.0,0.17452925]
[1719158532039,1.1641773,64199.0,64198.0,0.17652925]
[1719158532240,1.1641773,64199.0,64198.0,0.17952925]
[1719158532703,1.15046377,64199.0,64198.0,0.17952925]
[1719158532934,1.16414603,64199.0,64198.0,0.17952925]
[1719158535664,1.15046377,64199.0,64198.0,0.17952925]
[1719158535860,1.16478804,64199.0,64198.0,0.17952925]
[1719158538524,1.10568804,64199.0,64198.0,0.15849612]
[1719158538663,1.61079477,64199.0,64198.0,0.15849612]
[1719158538865,1.76730313,64199.0,64198.0,0.005935]
[1719158539097,1.61079477,64199.0,64198.0,0.005935]
[1719158539296,1.67458062,64199.0,64198.0,0.005935]
[1719158539524,1.87354749,64199.0,64198.0,0.005935]
[1719158539726,2.18507849,64199.0,64198.0,0.003935]
[1719158540084,2.27505245,64199.0,64198.0,0.004935]
[1719158540282,2.17991726,64199.0,64198.0,0.001935]
[1719158540696,2.26989054,64199.0,64198.0,0.001935]
[1719158541260,1.45762,64193.0,64192.0,0.000935]
[1719158541513,1.66854462,64193.0,64192.0,0.000935]
[1719158541712,1.65785833,64193.0,64192.0,0.000935]
[1719158541922,1.66946867,64193.0,64192.0,0.000935]
[1719158543030,1.66946867,64193.0,64192.0,0.001935]
[1719158543774,1.66946867,64193.0,64192.0,0.002935]
[1719158544601,1.66962444,64193.0,64192.0,0.002935]
[1719158547820,1.66962324,64193.0,64192.0,0.002935]
[1719158548217,1.66950681,64193.0,64192.0,0.002935]
[1719158548868,1.86847368,64193.0,64192.0,0.002935]
[1719158549448,1.66950681,64193.0,64192.0,0.002935]
[1719158549803,1.86847368,64193.0,64192.0,0.002935]